Cogmind - Beta 15 @@@ ROGUE MODE // 2025.09.30 @ 09:01:56 Player: Kotyk77 Result: Destroyed by P-80 Master with Gamma Rifle Performance ------------- Evolutions (7) 3500 Regions Visited (16) 3200 Robots Destroyed (119) 595 Value Destroyed (3636) 3636 Prototype IDs (42) 840 Alien Tech Used (0) 0 Bonus (321) 321 TOTAL SCORE: 12092 Bonus ------- Follower Combat Kills 21 Aligned with FarCom 300 Cogmind --------- Core Integrity 0/1300 Matter 121/300 Energy 23/100 System Corruption 8% Temperature Cool (0) Movement Core (50) Location -3/Research Parts ------- > --- POWER (2) -------- (None) > --- PROPULSION (6) --- (None) > --- UTILITY (11) ----- Advanced Signal Interpreter Advanced Target Analyzer Hacking Suite Improved System Shield > --- WEAPON (2) ------- (None) > --- INVENTORY (5) ---- Light Quantum Reactor Centrium Wheel Improved Antigrav System Improved Antigrav System Peak State ------------ > --- POWER ------------ Micro Antimatter Reactor Light Quantum Reactor > --- PROPULSION ------- Centrium Wheel Improved Diametric Drive Impulse Thruster Array Impulse Thruster Array > --- UTILITY ---------- Advanced Heat Sink Medium Storage Unit Advanced Signal Interpreter Long-range Terrain Scanner Targeting Computer Advanced Target Analyzer Core Analyzer Hacking Suite Improved System Shield Advanced Recalibrator > --- WEAPON ----------- Quantum Rifle Ionic Axe > --- INVENTORY -------- Light Quantum Reactor Centrium Wheel Centrium Wheel Centrium Wheel Q-thruster Impulse Thruster Array Compact HERF Cannon Nova Cannon Tesla Bomb Launcher [Rating: 133] Favorites ----------- Power Light Fission Core Engine Ion Engine Power Core Light Fission Core Reactor Micro Antimatter Reactor Propulsion Wheel Treads Light Treads Leg Flexi-carbon Leg Wheel Wheel Hover Unit Aerolev Unit Flight Unit Impulse Thruster Array Utility Hacking Suite Device Advanced ECM Suite Storage High-capacity Storage Unit Processor Machine Analyzer Hackware Hacking Suite Protection Hardened Light Armor Plating Weapon Heavy Assault Rifle Energy Gun Plasma Rifle Energy Cannon Phase Cannon Ballistic Gun Heavy Assault Rifle Ballistic Cannon Linear Accelerator Launcher Missile Launcher Impact Weapon Heavy Mace Slashing Weapon Great Axe Piercing Weapon Makeshift Spear Build | -11 -10 -10 -9 -9 -9 -8 -8 -7 -6 -5 -5 -5 -5 -5 -4 -3 ------- Run | Yrd Mat Min Mat Min Exi Min Mat Fac Fac Fac Was Fac Upp Upp Fac Res Slots Evolved 14 | . . . 2 . . . 2 2 2 2 . . . . 2 2 Power 1 | . . . . . . . . . 1 . . . . . . . Propulsion 4 | . . . . . . . 1 . . . . . . . 1 2 Utility 9 | . . . 2 . . . 1 2 1 2 . . . . 1 . Weapon . | . . . . . . . . . . . . . . . . . Parts Attached 182 | 7 7 4 14 5 . 4 18 20 15 4 . 21 3 3 10 47 Power 23 | 1 . . 3 2 . 1 1 2 2 . . 5 . 1 1 4 Engine 8 | 1 . . 3 2 . 1 . 1 . . . . . . . . Core 10 | . . . . . . . 1 1 2 . . 5 . . 1 . Reactor 5 | . . . . . . . . . . . . . . 1 . 4 Propulsion 54 | 2 1 2 1 1 . . 7 6 6 . . 4 1 . 4 19 Treads 1 | . . . . . . . . . 1 . . . . . . . Leg 15 | 2 1 . . . . . 1 2 . . . 2 1 . 3 3 Wheel 19 | . . 2 1 1 . . 6 4 3 . . 1 . . . 1 Hover 11 | . . . . . . . . . 2 . . 1 . . . 8 Flight 8 | . . . . . . . . . . . . . . . 1 7 Utility 62 | 2 2 . 7 1 . 1 5 6 6 4 . 9 2 1 2 14 Device 27 | 1 . . . . . . 3 1 3 3 . 3 . 1 2 10 Storage 10 | 1 2 . 2 1 . . . 1 1 . . . 1 . . 1 Processor 12 | . . . 2 . . . 1 2 . 1 . 4 . . . 2 Hackware 4 | . . . . . . . 1 . 1 . . 1 . . . 1 Protection 9 | . . . 3 . . 1 . 2 1 . . 1 1 . . . Artifact . | . . . . . . . . . . . . . . . . . Weapon 43 | 2 4 2 3 1 . 2 5 6 1 . . 3 . 1 3 10 Energy Gun 9 | . . . . . . . 3 1 1 . . . . . 2 2 Energy Cannon 6 | . 1 . . . . . . . . . . . . 1 . 4 Ballistic Gun 12 | 2 3 2 1 1 . 1 . 1 . . . . . . . 1 Ballistic Cannon 1 | . . . . . . . . . . . . . . . . 1 Launcher 5 | . . . . . . 1 1 1 . . . 1 . . . 1 Special Weapon . | . . . . . . . . . . . . . . . . . Impact Weapon 4 | . . . 2 . . . . 2 . . . . . . . . Slashing Weapon 5 | . . . . . . . 1 . . . . 2 . . 1 1 Piercing Weapon 1 | . . . . . . . . 1 . . . . . . . . Special Melee Weapon . | . . . . . . . . . . . . . . . . . Unidentified Prototypes 12 | . . . . . . . 3 1 1 1 . 1 . . . 5 Corrupted Parts 1 | . . . . . . . . . . . . . . . . 1 System Corruption 1 | . . . . . . . . . . . . . . . . 1 Parts Lost 82 | . 1 . 6 . . . 2 9 3 . 4 8 4 5 13 27 Power 11 | . . . 2 . . . 1 1 1 . . 1 . 2 2 1 Propulsion 28 | . 1 . 2 . . . 1 4 1 . 1 3 . 2 1 12 Utility 28 | . . . 1 . . . . 2 1 . 2 4 3 . 6 9 Weapon 15 | . . . 1 . . . . 2 . . 1 . 1 1 4 5 Highest Loss Streak 13 | . 1 . 6 . . . 1 5 2 . 4 5 4 3 11 13 To Critical Strikes 1 | . . . . . . . . . . . 1 . . . . . Average Backups 14 | 3 9 13 14 18 18 19 18 17 19 17 12 4 5 3 3 7 Power . | . 1 2 2 1 1 1 . . . . . . . 1 . . Propulsion 2 | 1 3 3 2 2 2 2 2 2 4 2 2 . . . . 3 Utility 7 | . . 2 4 9 9 10 9 9 11 12 8 3 2 2 2 1 Weapon 3 | . 3 5 5 5 6 5 4 4 2 2 1 1 1 . 1 2 Tool/Special . | . . . . . . . . . . . . . . . . . Unused Backups 49 | . 3 1 3 2 . 4 6 2 6 . 10 1 . . . 11 Power 4 | . . . 1 . . 2 . . . . . . . . . 1 Propulsion 13 | . . . . 1 . . 1 . 3 . 1 . . . . 7 Utility 23 | . . . 2 1 . 1 4 1 3 . 7 1 . . . 3 Weapon 8 | . 2 1 . . . 1 1 1 . . 2 . . . . . Tool/Special 1 | . 1 . . . . . . . . . . . . . . . Average Slot Usage (%) 88 | . 100 100 94 99 100 100 98 95 82 91 72 79 93 78 50 58 Engine 4 | . 14 14 10 11 11 11 7 1 1 . . . . . . . Core 4 | . . . . . . . 1 5 7 11 6 7 11 6 2 . Leg 2 | . 28 4 . . . . . 1 . . . 3 14 9 3 1 Wheel 14 | . . 23 19 21 22 22 25 20 13 11 8 2 . . . . Device 9 | . 14 14 9 . . . 8 4 11 18 20 17 11 12 10 9 Storage 8 | . 14 14 11 11 11 11 9 13 6 5 2 . 4 5 2 2 Processor 16 | . . . 13 22 22 22 18 21 14 11 11 16 24 11 10 12 Hackware 5 | . . . . . . . 3 7 6 11 11 8 11 11 8 5 Protection 3 | . . . 9 11 11 11 5 2 3 1 . 2 1 5 2 . Energy Gun 2 | . . . . . . . 3 3 4 5 2 . . . 1 2 Ballistic Gun 4 | . 23 28 10 11 11 11 4 . 1 . . . . . . . Launcher 1 | . . . . . . 11 1 2 . . . . 5 . . . Impact Weapon 3 | . . . 9 11 11 . 4 2 6 5 2 . . . . . Slashing Weapon 2 | . . . . . . . 4 2 . . . 9 4 5 3 1 Peak Build Rating 133 | 7 10 11 15 18 19 23 33 54 64 68 67 74 66 56 55 133 Average Rating 42 | 5 9 10 12 16 18 18 27 44 54 64 51 59 61 47 36 86 On Entrance 32 | . 7 10 11 12 18 19 23 31 42 54 68 33 61 56 47 55 Naked Turns . | . . . . . . . . . . . . . . . . . Heaviest Build 81 | 13 33 32 38 56 56 60 63 67 78 81 74 45 38 45 34 46 Greatest Support 72 | 20 20 20 20 22 22 22 38 48 48 32 32 44 59 59 50 72 Greatest Overweight (x) 19 | 1 3 1 11 5 2 2 19 5 4 2 3 14 . 1 1 5 Average Overweight (x) 1 | . . 1 1 2 2 2 1 1 1 2 . 1 . . . . Largest Inventory Capacity 20 | 8 15 15 15 20 20 20 20 20 20 20 20 5 10 10 10 10 Average Capacity 16 | 7 13 15 15 19 20 20 20 20 20 20 13 5 9 10 7 8 Most Carried 20 | 6 11 15 15 20 20 20 20 20 20 20 17 5 7 4 5 10 Average Carried 15 | 3 9 13 14 19 19 19 19 19 19 17 11 4 5 3 3 7 Final Capacity 20 | 8 15 15 15 20 20 20 20 20 20 20 5 5 10 10 5 5 Final Carried 20 | 6 10 15 13 19 20 20 20 20 20 19 5 5 4 4 5 4 Class Distribution -------------------- 71% | Mutant 6% | Scavenger-Assassin 6% | Hacker-Assassin 5% | Scavenger-Mutant Dominant Class ---------------- Mutant | -10/Materials Mutant | -10/Mines Scavenger-Mutant | -9/Materials Mutant | -9/Mines Mutant | -9/Exiles Mutant | -8/Mines Mutant | -8/Materials Mutant | -7/Factory Mutant | -6/Factory Hacker-Assassin | -5/Factory Hacker-Assassin | -5/Waste Hacker-Assassin | -5/Factory Scavenger-Assassin | -5/Upper Caves Scavenger-Mutant | -5/Upper Caves Scavenger-Assassin | -4/Factory Scavenger-Scout | -3/Research Resources | -11 -10 -10 -9 -9 -9 -8 -8 -7 -6 -5 -5 -5 -5 -5 -4 -3 ----------- Run | Yrd Mat Min Mat Min Exi Min Mat Fac Fac Fac Was Fac Upp Upp Fac Res Matter Collected 2823 | 278 106 168 319 71 . 66 392 300 209 20 . 279 245 55 3 312 Remotely . | . . . . . . . . . . . . . . . . . Salvage Created 4961 | 103 139 109 180 298 . 13 762 604 1431 . . 465 89 216 . 552 Parts 221 | 4 17 9 9 7 . 7 40 37 22 . . 20 3 8 . 38 Haulers Intercepted 2 | . . . . . . . 1 1 . . . . . . . . Recyclers Shooed 5 | 1 . . . . . . 1 . 2 . . . . . . 1 Parts Field Recycled . | . . . . . . . . . . . . . . . . . Retrieved Matter . | . . . . . . . . . . . . . . . . . Parts Self-Destructed 8 | . . . . . . . . . . . . . 2 6 . . Prevented . | . . . . . . . . . . . . . . . . . Kills | -11 -10 -10 -9 -9 -9 -8 -8 -7 -6 -5 -5 -5 -5 -5 -4 -3 ------- Run | Yrd Mat Min Mat Min Exi Min Mat Fac Fac Fac Was Fac Upp Upp Fac Res Combat Hostiles Destroyed 70 | . 7 3 3 3 . 4 8 12 11 . . 6 2 2 . 9 Melee 14 | . . . 1 . . . 1 3 2 . . 3 . 1 . 3 Guns 27 | . 7 3 1 3 . . 4 5 4 . . . . . . . Cannons 4 | . . . . . . . . . . . . . . 1 . 3 AOE 16 | . . . . . . 4 3 2 . . . 3 2 . . 2 Classes Destroyed 14 | 2 3 . . 1 . . 4 2 . . . . . 1 . 1 Worker 10 | . . . . 1 . . 3 . 6 . . . . . . . Builder 5 | . . . . . . . 2 . 1 . . 2 . . . . Tunneler 2 | 1 . . . 1 . . . . . . . . . . . . Hauler 2 | . . . . . . . 1 1 . . . . . . . . Recycler 16 | 1 . 1 . 3 . . 3 1 5 . . 1 . . . 1 Operator 4 | . . . . . . . 1 3 . . . . . . . . Watcher 10 | . 1 . 2 . . . 3 1 2 . . . . . . 1 Swarmer 22 | . 6 3 . 3 . 4 . 1 . . . . . . . 5 Cutter 1 | . . . . . . . . . . . . . . . . 1 Grunt 21 | . 1 . 3 . . . 4 4 3 . . 3 1 2 . . Sentry 10 | . . . . . . . 4 2 3 . . . 1 . . . Hunter 3 | . . . . . . . . 1 1 . . 1 . . . . Programmer 13 | . . . . . . . . 4 4 . . 2 . . . 3 Decomposer 1 | . . . . . . . . . . . . . 1 . . . Samaritan 2 | . . . . . . . . . . . . . . 2 . . Best Kill Streak 5 | 1 3 3 2 2 . 4 4 3 2 . . 4 1 1 . 5 Combat Bots Only 4 | . 3 3 2 2 . 4 2 3 2 . . 3 1 1 . 4 Max Kills in Single Turn 3 | 1 2 2 1 1 . 2 3 1 1 . . 2 1 1 . 1 Gunslinging 1 | . 1 1 . . . . . . . . . . . . . . Exploded 2 | . . . . . . 2 2 1 . . . 1 1 . . 1 Melee 1 | . . . 1 . . . 1 1 1 . . 1 . 1 . 1 Uniques/NPCs Destroyed . | . . . . . . . . . . . . . . . . . Combat | -11 -10 -10 -9 -9 -9 -8 -8 -7 -6 -5 -5 -5 -5 -5 -4 -3 -------- Run | Yrd Mat Min Mat Min Exi Min Mat Fac Fac Fac Was Fac Upp Upp Fac Res Hostile Shots Fired 1326 | . 42 13 90 7 . 8 57 283 192 . 6 108 11 28 148 333 Missed 464 | . 11 6 24 1 . 2 21 104 63 . . 34 4 2 55 137 Hits 862 | . 31 7 66 6 . 6 36 179 129 . 6 74 7 26 93 196 Melee 20 | . . . . . . . . . . . 6 . . . . 14 Projectile 842 | . 31 7 66 6 . 6 36 179 129 . . 74 7 26 93 182 Critical Strikes 47 | . . . 4 . . . 1 5 . . 4 4 1 1 11 16 Part Disruptions 1 | . . . . . . . . . . . . 1 . . . . Damage Taken 14400 | . 344 76 987 46 . 76 580 1888 1311 . 288 1503 428 497 1864 4512 Core 3722 | . 23 17 344 10 . . 203 292 122 . 108 226 24 40 999 1314 Absorbed by Shields 80 | . . . . . . . . . . . . . . . 55 25 Regen/Repaired (Parts) 104 | . . . . . . . 94 . 10 . . . . . . . Core Remaining (%) 59 | 100 . 84 . . . 11 63 58 85 . . . . 60 13 . Volleys Fired 223 | 9 20 9 10 7 . 2 40 36 40 . . 4 5 11 8 22 Largest 2 | 2 2 2 1 1 . 2 1 1 1 . . 1 1 1 1 1 Hottest 113 | 40 56 46 23 23 . 53 61 75 75 . . 43 43 85 85 113 Shots Fired 264 | 18 37 18 10 7 . 4 40 36 40 . 1 4 7 11 8 23 Gun 201 | 18 34 18 10 7 . 2 34 27 40 . 1 . . . 4 6 Cannon 28 | . 3 . . . . . . . . . . . . 11 4 10 Launcher 35 | . . . . . . 2 6 9 . . . 4 7 . . 7 Special . | . . . . . . . . . . . . . . . . . Kinetic 118 | 18 34 18 10 7 . 2 26 3 . . . . . . . . Thermal 103 | . . . . . . . 8 24 40 . 1 . . 11 7 12 Explosive 28 | . . . . . . 2 6 9 . . . 4 7 . . . Electromagnetic 15 | . 3 . . . . . . . . . . . . . 1 11 Robot Hit Streak 16 | 4 8 4 8 5 . 1 11 12 16 . . 10 16 5 3 5 Robot Miss Streak 5 | 1 4 5 1 1 . 1 4 3 2 . . . . 3 1 4 Penetration Max . | . . . . . . . . . . . . . . . . . Secondary Targets 2 | . 1 1 . . . . . . . . . . . . . . Max Gunslinging Chain 1 | . 1 1 . . . . . . . . . . . . . . Shots Hit Robots 302 | 11 20 10 20 12 . 1 44 49 75 . 1 16 6 11 5 21 Core Hits 165 | 5 8 5 5 3 . 3 28 47 18 . . 14 6 7 . 16 Critical Kills . | . . . . . . . . . . . . . . . . . Critical Parts Destroyed 21 | . . . 2 2 . . 1 2 14 . . . . . . . Critical Strikes 34 | . . . 2 2 . . 2 4 22 . . 2 . . . . Burn 9 | . . . . . . . 1 . 8 . . . . . . . Destroy 1 | . . . . . . . 1 . . . . . . . . . Smash 20 | . . . 2 2 . . . 2 14 . . . . . . . Sever 2 | . . . . . . . . . . . . 2 . . . . Impale 2 | . . . . . . . . 2 . . . . . . . . Melee Attacks 178 | . . . 15 6 . . 15 34 56 . 1 22 . 6 7 16 Impact 97 | . . . 15 6 . . 3 16 56 . 1 . . . . . Slashing 69 | . . . . . . . 12 6 . . . 22 . 6 7 16 Piercing 12 | . . . . . . . . 12 . . . . . . . . Sneak Attacks 41 | . . . . 6 . . 5 7 19 . . 2 . 2 . . Combat Hostiles 5 | . . . . . . . . 3 2 . . . . . . . Follow-up Attacks 1 | . . . . . . . . . . . . 1 . . . . Damage Inflicted 12287 | 93 322 182 511 523 . 195 1721 1916 3213 . 24 1138 264 478 112 1595 Guns 2950 | 93 284 145 138 96 . . 695 638 704 . . . . . 68 89 Cannons 574 | . 38 . . . . . . . . . . . . 208 . 328 Explosions 2654 | . . . . . . 195 521 422 . . . 558 264 . . 694 Melee 6044 | . . . 373 427 . . 505 856 2509 . 24 580 . 270 41 459 Ramming 65 | . . 37 . . . . . . . . . . . . 3 25 Kinetic 1357 | 93 284 145 138 96 . . 550 51 . . . . . . . . Thermal 2369 | . . . . . . . 145 587 704 . . 288 . 208 68 369 Explosive 1672 | . . . . . . 195 521 422 . . . 270 264 . . . Electromagnetic 780 | . 38 . . . . . . . . . . . . . . 742 Impact 3942 | . . . 373 427 . . 111 498 2509 . 24 . . . . . Slashing 1915 | . . . . . . . 394 171 . . . 580 . 270 41 459 Piercing 187 | . . . . . . . . 187 . . . . . . . . Highest Corruption 33 | . . . . . . . . . 2 . 16 22 33 33 10 7 Average Corruption 10 | . . . . . . . . . 1 . 9 19 24 33 4 1 Corruption Purged 4 | . . . . . . . . . . . . . . . . 4 Corruption Blocked . | . . . . . . . . . . . . . . . . . Effects 102 | . . . . . . . . . 7 . 6 34 37 7 2 9 Message Errors 29 | . . . . . . . . . . . 1 13 6 5 1 3 Matter Fused 24 | . . . . . . . . . 3 . . 8 12 . . 1 Heat Flow Errors 13 | . . . . . . . . . 1 . 1 2 6 1 1 1 Energy Discharges 13 | . . . . . . . . . 2 . 2 3 4 1 . 1 Data Loss (minor) 12 | . . . . . . . . . 1 . 1 5 3 . . 2 Data Loss (major) 3 | . . . . . . . . . . . . . 3 . . . Misfires 4 | . . . . . . . . . . . 1 . 2 . . 1 Alerts 4 | . . . . . . . . . . . . 3 1 . . . Overload Shots . | . . . . . . . . . . . . . . . . . Overflow Damage 2327 | . . . 87 307 . 30 85 267 1361 . . 92 . 53 . 45 Projectiles . | . . . . . . . . . . . . . . . . . Explosions 138 | . . . . . . 30 29 30 . . . 36 . . . 13 Melee 2189 | . . . 87 307 . . 56 237 1361 . . 56 . 53 . 32 Knockbacks 26 | . . . 3 4 . . . 3 16 . . . . . . . Impact 23 | . . . 2 4 . . . 3 14 . . . . . . . Kinetic . | . . . . . . . . . . . . . . . . . Secondary 3 | . . . 1 . . . . . 2 . . . . . . . Self-Inflicted Damage 301 | . . 16 . . . 32 . 143 . . . 3 . . 1 106 Shots 9 | . . . . . . 1 . 3 . . . 1 . . . 4 Rammed 5 | . . 3 . . . . . . . . . . . . 2 . Targets Rammed 28 | . . 4 . . . . . . . . . . . . 2 22 Kicked 23 | . . 1 . . . . . . . . . . . . . 22 Crushed . | . . . . . . . . . . . . . . . . . Highest Temperature 371 | . 32 . 8 . . . 78 150 160 . 160 238 209 300 70 371 Average Temperature 70 | . 13 . 5 . . . 31 47 54 . 94 91 79 134 24 99 Received Heat Transfer 2855 | . 63 . 495 . . . 216 468 369 . . 378 9 190 476 191 Effects 1 | . . . . . . . . . . . . . . . . 1 Energy Bleed 1 | . . . . . . . . . . . . . . . . 1 Siege Activations . | . . . . . . . . . . . . . . . . . Martial Activations . | . . . . . . . . . . . . . . . . . Shielding Activations . | . . . . . . . . . . . . . . . . . Robots Disrupted . | . . . . . . . . . . . . . . . . . Combat Hostiles . | . . . . . . . . . . . . . . . . . Robots Corrupted 21 | . . . 2 3 . . . 2 12 . . . . . . 2 Combat Hostiles 8 | . . . 1 . . . . 2 4 . . . . . . 1 Parts Fried 35 | . . . 3 3 . . . 3 22 . . . . . . 4 Impact Corruptions 60 | . . . 5 12 . . 1 6 36 . . . . . . . Robots Melted 2 | . . . . . . . . . 2 . . . . . . . Combat Hostiles 1 | . . . . . . . . . 1 . . . . . . . Parts Melted 9 | . . . . . . . 1 1 7 . . . . . . . Heat Transferred 4022 | . . . . . . . 370 470 2229 . . 250 . 259 111 333 Parts Sabotaged . | . . . . . . . . . . . . . . . . . Parts Stolen . | . . . . . . . . . . . . . . . . . Parts Stripped . | . . . . . . . . . . . . . . . . . Power Chain Reactions . | . . . . . . . . . . . . . . . . . Alert | -11 -10 -10 -9 -9 -9 -8 -8 -7 -6 -5 -5 -5 -5 -5 -4 -3 ------- Run | Yrd Mat Min Mat Min Exi Min Mat Fac Fac Fac Was Fac Upp Upp Fac Res Maximum Alert Level 1 | . . . . . . . . . . . . 1 . . . . Low Security (%) 99 | 100 100 100 100 100 . 100 100 100 100 100 100 88 . . 100 100 Level 1 . | . . . . . . . . . . . . 11 . . . . Level 2 . | . . . . . . . . . . . . . . . . . Level 3 . | . . . . . . . . . . . . . . . . . Level 4 . | . . . . . . . . . . . . . . . . . Level 5 . | . . . . . . . . . . . . . . . . . High Security . | . . . . . . . . . . . . . . . . . Max Security . | . . . . . . . . . . . . . . . . . Peak Influence 249 | 5 91 60 52 81 . 112 119 138 113 51 . 249 . . 145 197 Initial 68 | . . 27 14 . . . . 13 65 51 . . . . . 68 Average 29 | 1 41 11 11 15 . 27 42 26 26 9 . 40 . . 26 51 Influence Increases 3491 | 10 188 75 149 211 . 112 351 551 412 . . 433 55 65 250 629 Destroy 0b10 Robot/C 1460 | . 140 60 60 120 . 80 160 240 220 . . 120 40 40 . 180 Destroy 0b10 Robot/NC 245 | 10 5 5 10 25 . . 65 30 70 . . 15 . . . 10 Destroy Leader 404 | . 22 10 14 20 . 10 68 84 94 . . 30 . 10 . 42 Allied During Kill 16 | . . . . 16 . . . . . . . . . . . . Successful Hack 87 | . 6 . 5 . . . 16 32 8 . . 10 . . . 10 Disable Machine 195 | . 15 . 15 . . 15 . 60 . . . 60 . . 15 15 Destroy Structure 244 | . . . . . . 7 42 60 5 . . 108 . . 10 12 Partial Spotted 30 | . . . . . . . . . . . . 15 . . 15 . Lose Combat Pursuer 810 | . . . 45 30 . . . 45 15 . . 75 15 15 210 360 Influence Decreases 3346 | 10 117 107 188 211 . 112 321 447 440 106 . 195 293 65 120 614 Entered New Map 361 | . . 44 25 . . . . 17 69 55 . . 89 . . 62 Time Decay 2448 | 10 107 63 133 151 . 112 301 340 360 51 . 136 200 50 85 349 Lost Part 477 | . 10 . 30 . . . 20 90 11 . . 59 4 15 35 203 Lost Ally 60 | . . . . 60 . . . . . . . . . . . . Squads Dispatched 31 | . 1 . 2 . . . 3 8 6 . . 4 . . 3 4 Investigation 7 | . . . . . . . 2 1 2 . . 1 . . 1 . Extermination 14 | . . . . . . . . 4 4 . . 2 . . 1 3 Reinforcement 9 | . 1 . 2 . . . 1 2 . . . 1 . . 1 1 Assault . | . . . . . . . . . . . . . . . . . Garrison 1 | . . . . . . . . 1 . . . . . . . . Intercept . | . . . . . . . . . . . . . . . . . Searches Triggered . | . . . . . . . . . . . . . . . . . Construction Impeded 1 | . . . . . . . . . . . . 1 . . . . Haulers Reinforced 1 | . . . . . . . . 1 . . . . . . . . Active Scanning Responses . | . . . . . . . . . . . . . . . . . Cargo Convoy Interrupts . | . . . . . . . . . . . . . . . . . Stealth | -11 -10 -10 -9 -9 -9 -8 -8 -7 -6 -5 -5 -5 -5 -5 -4 -3 --------- Run | Yrd Mat Min Mat Min Exi Min Mat Fac Fac Fac Was Fac Upp Upp Fac Res Distress Signals 8 | . 3 . 1 . . . 1 2 1 . . . . . . . Communications Jammed . | . . . . . . . . . . . . . . . . . Distress Signals . | . . . . . . . . . . . . . . . . . Times Spotted 182 | . 13 4 16 5 . 4 14 25 17 . 7 10 4 4 18 41 Peak Tracking Total 11 | . 4 3 4 3 . 4 3 5 5 . 6 3 1 3 11 8 Tactical Retreats 29 | . . . 2 1 . . 1 3 3 . 1 3 1 1 3 10 Traps | -11 -10 -10 -9 -9 -9 -8 -8 -7 -6 -5 -5 -5 -5 -5 -4 -3 ------- Run | Yrd Mat Min Mat Min Exi Min Mat Fac Fac Fac Was Fac Upp Upp Fac Res Traps Triggered 11 | . 2 . . . . . 1 2 . 1 . 1 . . 2 2 Indirectly 1 | . . . . . . . . . . . . . . . . 1 Trap Hack Attempts . | . . . . . . . . . . . . . . . . . Triggered . | . . . . . . . . . . . . . . . . . Disarmed . | . . . . . . . . . . . . . . . . . Reprogrammed . | . . . . . . . . . . . . . . . . . Reused 1 | . . . . . . . . . . . . . 1 . . . Traps Extracted . | . . . . . . . . . . . . . . . . . Installed 1 | . . . . . . . . . . . . . 1 . . . Triggered 1 | . . . . . . . . . . . . . 1 . . . Most Traps Carried 1 | . . . . . . . . . . . . . 1 . . . Machines | -11 -10 -10 -9 -9 -9 -8 -8 -7 -6 -5 -5 -5 -5 -5 -4 -3 ---------- Run | Yrd Mat Min Mat Min Exi Min Mat Fac Fac Fac Was Fac Upp Upp Fac Res Machines Disabled 13 | . 1 . 1 . . 1 . 4 . . . 4 . . 1 1 Max in Single Turn 3 | . 1 . 1 . . 1 . 1 . . . 3 . . 1 1 Garrison Access 1 | . . . . . . . 1 . . . . . . . . . Machines Repaired . | . . . . . . . . . . . . . . . . . Machines Dismantled . | . . . . . . . . . . . . . . . . . Machines Sabotaged . | . . . . . . . . . . . . . . . . . Overloaded Fab Kills . | . . . . . . . . . . . . . . . . . Hacking | -11 -10 -10 -9 -9 -9 -8 -8 -7 -6 -5 -5 -5 -5 -5 -4 -3 --------- Run | Yrd Mat Min Mat Min Exi Min Mat Fac Fac Fac Was Fac Upp Upp Fac Res Machines Accessed 29 | . 2 . 1 . 2 . 6 7 4 . . 3 . . 1 3 Terminals 16 | . 2 . 1 . . . 4 5 . . . 3 . . . 1 Fabricators 4 | . . . . . . . . 1 2 . . . . . 1 . Repair Stations 1 | . . . . . . . 1 . . . . . . . . . Recycling Units . | . . . . . . . . . . . . . . . . . Scanalyzers 5 | . . . . . . . . 1 2 . . . . . . 2 Garrison Access 1 | . . . . . . . 1 . . . . . . . . . Total Hacks 71 | . 4 . 2 . 2 . 21 13 9 . . 11 . . 2 7 Successful 45 | . 1 . 1 . 2 . 13 8 8 . . 7 . . . 5 Failed 26 | . 3 . 1 . . . 8 5 1 . . 4 . . 2 2 Catastrophic 1 | . . . 1 . . . . . . . . . . . . . Database Lockouts . | . . . . . . . . . . . . . . . . . Manual 25 | . 3 . 2 . 1 . 11 5 . . . 3 . . . . Terminals 39 | . 4 . 2 . . . 13 8 . . . 11 . . . 1 Fabricators 10 | . . . . . . . . 3 5 . . . . . 2 . Repair Stations 5 | . . . . . . . 5 . . . . . . . . . Recycling Units . | . . . . . . . . . . . . . . . . . Scanalyzers 12 | . . . . . . . . 2 4 . . . . . . 6 Garrison Access 3 | . . . . . . . 3 . . . . . . . . . Terminal Hacks 17 | . 1 . . . 2 . 6 2 . . . 6 . . . . Record 2 | . . . . . 1 . . . . . . 1 . . . . Part Schematic 1 | . . . . . . . . 1 . . . . . . . . Robot Analysis 3 | . 1 . . . . . 2 . . . . . . . . . Prototype ID Bank 4 | . . . . . . . 3 . . . . 1 . . . . Emergency Access Points 1 | . . . . . . . . . . . . 1 . . . . Machine Index 1 | . . . . . . . . . . . . 1 . . . . Terminal Index 2 | . . . . . . . 1 1 . . . . . . . . Alert Level 1 | . . . . . . . . . . . . 1 . . . . Maintenance Status 1 | . . . . . . . . . . . . 1 . . . . Proto ID Catalog 1 | . . . . . 1 . . . . . . . . . . . Fabricator Hacks 6 | . . . . . . . . 2 4 . . . . . . . Load Schematic 3 | . . . . . . . . 1 2 . . . . . . . Build 3 | . . . . . . . . 1 2 . . . . . . . Repair Station Hacks 4 | . . . . . . . 4 . . . . . . . . . Scan Component 3 | . . . . . . . 3 . . . . . . . . . Repair 1 | . . . . . . . 1 . . . . . . . . . Recycling Unit Hacks . | . . . . . . . . . . . . . . . . . Scanalyzer 11 | . . . . . . . . 2 4 . . . . . . 5 Insert Component 6 | . . . . . . . . 1 2 . . . . . . 3 Analyze 5 | . . . . . . . . 1 2 . . . . . . 2 Garrison Access Hacks 1 | . . . . . . . 1 . . . . . . . . . Seal Access 1 | . . . . . . . 1 . . . . . . . . . Unauthorized Hacks 6 | . . . 1 . . . 2 2 . . . 1 . . . . Terminals 6 | . . . 1 . . . 2 2 . . . 1 . . . . Botnet 6 | . . . 1 . . . 2 2 . . . 1 . . . . Fabricators . | . . . . . . . . . . . . . . . . . Repair Stations . | . . . . . . . . . . . . . . . . . Recycling Units . | . . . . . . . . . . . . . . . . . Scanalyzers . | . . . . . . . . . . . . . . . . . Garrison Access . | . . . . . . . . . . . . . . . . . Data Cores Recovered . | . . . . . . . . . . . . . . . . . Used . | . . . . . . . . . . . . . . . . . Hacking Detections 23 | . 1 . 1 . . . 6 4 4 . . 3 . . 1 3 Full Trace Events 8 | . . . . . . . 4 1 2 . . 1 . . . . Feedback Events 1 | . . . . . . . . . . . . 1 . . . . Corruption 1 | . . . . . . . . . . . . 1 . . . . Feedback Blocked . | . . . . . . . . . . . . . . . . . Robot Schematics Acquired . | . . . . . . . . . . . . . . . . . Robots Built . | . . . . . . . . . . . . . . . . . Authchips . | . . . . . . . . . . . . . . . . . Time . | . . . . . . . . . . . . . . . . . Total Robot Build Rating . | . . . . . . . . . . . . . . . . . Part Schematics Acquired 6 | . . . . . . . . 2 2 . . . . . . 2 Parts Built 3 | . . . . . . . . 1 2 . . . . . . . Authchips . | . . . . . . . . . . . . . . . . . Time 265 | . . . . . . . . 53 212 . . . . . . . Total Part Build Rating 18 | . . . . . . . . 6 12 . . . . . . . Parts Repaired 1 | . . . . . . . 1 . . . . . . . . . Time 32 | . . . . . . . 32 . . . . . . . . . Parts Recycled . | . . . . . . . . . . . . . . . . . Recycled Matter . | . . . . . . . . . . . . . . . . . Retrieved Matter . | . . . . . . . . . . . . . . . . . Retrieved Components . | . . . . . . . . . . . . . . . . . Parts Scanalyzed 5 | . . . . . . . . 1 2 . . . . . . 2 Part Schematics Acquired 5 | . . . . . . . . 1 2 . . . . . . 2 Parts Damaged 1 | . . . . . . . . . 1 . . . . . . . Bothacking | -11 -10 -10 -9 -9 -9 -8 -8 -7 -6 -5 -5 -5 -5 -5 -4 -3 ------------ Run | Yrd Mat Min Mat Min Exi Min Mat Fac Fac Fac Was Fac Upp Upp Fac Res Used RIF Installer . | . . . . . . . . . . . . . . . . . Robots Hacked . | . . . . . . . . . . . . . . . . . Non-combat . | . . . . . . . . . . . . . . . . . Combat . | . . . . . . . . . . . . . . . . . Robot Hacks Applied . | . . . . . . . . . . . . . . . . . Relay Couplers Released . | . . . . . . . . . . . . . . . . . Fabnet Peak Effective % . | . . . . . . . . . . . . . . . . . Robots Rewired . | . . . . . . . . . . . . . . . . . Allies Hacked . | . . . . . . . . . . . . . . . . . Hacks Repelled . | . . . . . . . . . . . . . . . . . Allies | -11 -10 -10 -9 -9 -9 -8 -8 -7 -6 -5 -5 -5 -5 -5 -4 -3 -------- Run | Yrd Mat Min Mat Min Exi Min Mat Fac Fac Fac Was Fac Upp Upp Fac Res Total Allies 3 | . . . . 3 . . . . . . . . . . . . Largest Group 3 | . . . . 3 . . . . . . . . . . . . Highest-Rated Group 40 | . . . . 40 . . . . . . . . . . . . Highest-Rated Ally 16 | . . . . 16 . . . . . . . . . . . . Total Orders 13 | . . . . . . . . 8 3 2 . . . . . . EXPLORE 9 | . . . . . . . . 4 3 2 . . . . . . RETURN 4 | . . . . . . . . 4 . . . . . . . . Ally Attacks 23 | . . . . 23 . . . . . . . . . . . . Total Damage 106 | . . . . 106 . . . . . . . . . . . . Kills 3 | . . . . 3 . . . . . . . . . . . . Allies Corrupted 1 | . . . . . . . . . . 1 . . . . . . Allies Melted 1 | . . . . . . . . . . . . . . 1 . . Intel | -11 -10 -10 -9 -9 -9 -8 -8 -7 -6 -5 -5 -5 -5 -5 -4 -3 ------- Run | Yrd Mat Min Mat Min Exi Min Mat Fac Fac Fac Was Fac Upp Upp Fac Res Active Infowar (turns) 9518 | 8 356 426 402 . . . 986 2220 2464 314 171 755 738 146 234 298 Sensors 1444 | . . . . . . . 90 . . . . 236 738 146 234 . Terrain 298 | . . . . . . . . . . . . . . . . 298 Traps 638 | . . . . . . . . . . 311 171 156 . . . . Seismic 1192 | 8 356 426 402 . . . . . . . . . . . . . T.N.C. 57 | . . . . . . . 57 . . . . . . . . . Machine Analysis 6480 | . . . . . . . . 2220 2464 314 171 755 556 . . . Cloaking 75 | . . . . . . . . . . . . 75 . . . . ECM 2436 | . . . . . . . 839 169 1144 188 96 . . . . . Robot Analysis Total 3 | . 1 . . . . . 2 . . . . . . . . . Derelict Logs Recovered 2 | . . 1 . 1 . . . . . . . . . . . . Drone Launches 10 | . . . . . . . . 5 3 2 . . . . . . Drone Recoveries 8 | . . . . . . . . 5 3 . . . . . . . Exploration | -11 -10 -10 -9 -9 -9 -8 -8 -7 -6 -5 -5 -5 -5 -5 -4 -3 ------------- Run | Yrd Mat Min Mat Min Exi Min Mat Fac Fac Fac Was Fac Upp Upp Fac Res Turns Passed 12698 | 121 356 426 472 819 273 476 1575 2226 2464 314 171 755 738 146 392 974 Spaces Moved 8193 | 71 150 356 329 644 237 400 795 1173 1181 147 147 482 576 55 267 1183 Core 232 | 9 . . 4 . . . 5 . . . . 24 . . 129 61 Treads . | . . . . . . . . . . . . . . . . . Legs 1295 | 62 150 23 . . . . . 69 . . . 185 576 55 83 92 Wheels 5581 | . . 333 325 644 237 400 790 1104 1181 147 147 273 . . . . Hover 69 | . . . . . . . . . . . . . . . . 69 Flight 1016 | . . . . . . . . . . . . . . . 55 961 Fastest Speed 31 | 50 120 95 95 115 115 115 98 105 115 130 100 100 120 120 40 31 Average Speed 107 | 114 182 101 105 116 115 115 105 116 120 130 114 130 120 182 95 47 Slowest Speed 1000 | 120 330 190 600 155 115 115 1000 270 160 130 145 750 120 190 190 300 Overloaded Moves . | . . . . . . . . . . . . . . . . . Propulsion Burnouts . | . . . . . . . . . . . . . . . . . Robots Hopped 3 | . . . . . . . . . . . . . . . 1 2 Potential Cave-ins . | . . . . . . . . . . . . . . . . . Cave-ins Triggered 1 | . . . . . . . . . . . . . 1 . . . Exploration Rate (%) 38 | 6 27 58 25 96 60 86 37 26 18 14 93 10 61 5 10 25 Regions Visited 16 Branch Regions 6 Pre-discovered Areas 2 | . . . . 1 1 . . . . . . . . . . . Known Exits Taken 11 | . . . 1 1 1 1 1 1 1 . . 1 1 1 1 . Unknown Exits Taken 3 | 1 1 1 . . . . . . . . . . . . . . Scrap Searched 3 | . . . . 2 . 1 . . . . . . . . . . Spaces Dug 26 | . . . . . . . 2 6 5 . . 4 . . 5 4 Terrain Destroyed 301 | . . . . . . 7 52 75 5 . . 62 85 4 5 6 Melee 26 | . . . . . . . 2 6 5 . . 4 . . 5 4 Projectile 6 | . . . . . . . . . . . . . . 4 . 2 AOE 269 | . . . . . . 7 50 69 . . . 58 85 . . . Terrain Rammed . | . . . . . . . . . . . . . . . . . Walls Destroyed . | . . . . . . . . . . . . . . . . . Machines Disabled . | . . . . . . . . . . . . . . . . . Actions | -11 -10 -10 -9 -9 -9 -8 -8 -7 -6 -5 -5 -5 -5 -5 -4 -3 --------- Run | Yrd Mat Min Mat Min Exi Min Mat Fac Fac Fac Was Fac Upp Upp Fac Res Total 11571 | 93 199 401 422 698 237 417 1473 1946 2094 273 148 562 617 79 379 1533 Wait 2475 | . 8 22 31 22 . 1 560 650 758 110 . 25 29 4 73 182 Move 8172 | 70 149 355 328 643 236 399 794 1172 1180 147 146 481 575 54 264 1179 Hop 3 | . . . . . . . . . . . . . . . 1 2 Pick Up 129 | 7 7 5 10 9 1 4 18 16 18 4 . 3 2 1 4 20 Fast Attach 96 | 6 . . 3 1 . . 8 6 8 1 . 16 2 2 7 36 Attach 47 | 1 1 . 5 1 . . 3 12 4 5 . 3 2 1 3 6 Detach 11 | . . . . . . . 1 3 2 4 . 1 . . . . Swap 62 | . 7 4 7 3 . 4 11 6 4 . . 3 . . 1 12 Drop 129 | . 7 2 13 6 . 7 23 11 24 2 1 6 1 . 2 24 Fire 223 | 9 20 9 10 7 . 2 40 36 40 . . 4 5 11 8 22 Melee 176 | . . . 15 6 . . 15 34 56 . 1 20 . 6 7 16 Ram 5 | . . 3 . . . . . . . . . . . . 2 . Kick 23 | . . 1 . . . . . . . . . . . . . 22 Crush . | . . . . . . . . . . . . . . . . . Escape Stasis 19 | . . . . . . . . . . . . . . . 7 12 Rewire . | . . . . . . . . . . . . . . . . . Trap 1 | . . . . . . . . . . . . . 1 . . . Miscellaneous . | . . . . . . . . . . . . . . . . . Route ------- -11/Scrapyard -10/Materials -10/Mines -9/Materials -9/Mines (discovered 3 exits: *Mat x2 / *Exi) -9/Exiles -8/Mines -8/Materials -7/Factory (discovered 2 exits: *Fac / *Low) -6/Factory -5/Factory -5/Waste -5/Factory -5/Upper Caves -5/Upper Caves -4/Factory -3/Research (discovered 1 exit: *Arm) History --------- Turn | Location | Event 6 | -11/Scrapyard | Discovered new exit (range 15) 122 | -11/Scrapyard | Entered Materials 288 | -10/Materials | Discovered new exit (range 16) 302 | -10/Materials | Build established: Mutant 478 | -10/Materials | Entered Mines 558 | -10/Mines | Discovered new exit (range 6) 563 | -10/Mines | Joined a pair of Derelicts in attacking an 0b10 outpost 844 | -10/Mines | Learned Materials emergency access door positions 904 | -10/Mines | Entered Materials 904 | -9/Materials | Evolved 2 slots: Utility x2 1040 | -9/Materials | Met 8R-AWN 1133 | -9/Materials | Discovered new exit (range 8) 1296 | -9/Materials | Core integrity fell below 50% 1317 | -9/Materials | Core integrity fell below 20% 1337 | -9/Materials | Lost 6 parts (2p2n1u1w) 1375 | -9/Materials | Identified exit to Mines 1376 | -9/Materials | Entered Mines 1377 | -9/Mines | Followed 8R-AWN into the Mines 1388 | -9/Mines | Discovered new exit (range 16) 1395 | -9/Mines | Met a Derelict bent on vengeance 1422 | -9/Mines | Identified exit to Materials 1508 | -9/Mines | Found a Scrap Suit stashed away for nefarious purposes 1510 | -9/Mines | Found Scrap Suit 1580 | -9/Mines | A weapon hastily lodged in a ceiling crevice suddenly fell to the ground 1634 | -9/Mines | Assisted by bots powering up and referring to "LRC-V3" 1721 | -9/Mines | Learned location of Storage (-8) 1905 | -9/Mines | Lost 3 allies 1929 | -9/Mines | Discovered exit to Materials (range 15) 2035 | -9/Mines | Found a damaged Exp. Sensor Array with a note attached 2038 | -9/Mines | Found Prototype Device 2187 | -9/Mines | Discovered new exit (range 5) 2192 | -9/Mines | Identified exit to Exiles 2195 | -9/Mines | Entered Exiles 2223 | -9/Exiles | Welcomed by 8R-AWN 2243 | -9/Exiles | Met EX-HEX 2283 | -9/Exiles | Met EX-BIN 2296 | -9/Exiles | Aligned with FarCom system 2297 | -9/Exiles | Given EX-Vault access code 2330 | -9/Exiles | Opened EX-Vault 2347 | -9/Exiles | Found Superbattery 2371 | -9/Exiles | Warned to stay clear of 0b10 Research branches 2408 | -9/Exiles | Met EX-DEC 2414 | -9/Exiles | Learned location of Zion (-6) 2458 | -9/Exiles | Discovered new exit (range 10) 2467 | -9/Exiles | Identified exit to Mines 2468 | -9/Exiles | Left Exiles lab with Superbattery 2468 | -9/Exiles | Entered Mines 2867 | -8/Mines | Found DCF Scrap (14 items) 2923 | -8/Mines | Discovered exit to Materials (range 11) 2944 | -8/Mines | Entered Materials 2944 | -8/Materials | Evolved 2 slots: Propulsion x1, Utility x1 2944 | -8/Materials | Identified Exp. Sensor Array 3077 | -8/Materials | Repaired Arm. Wheel 3836 | -8/Materials | Discovered new exit (range 16) 4118 | -8/Materials | Identified exit to Factory 4519 | -8/Materials | Entered Factory 4519 | -7/Factory | Evolved 2 slots: Utility x2 5329 | -7/Factory | Fabricated Adv. Drone Bay? 5969 | -7/Factory | Discovered new exit (range 51) 6262 | -7/Factory | Identified exit to Lower Caves 6283 | -7/Factory | Garrison activated, responded to threat 6433 | -7/Factory | Lost 5 parts (1p3n1u) 6502 | -7/Factory | Discovered new exit (range 10) 6526 | -7/Factory | Identified exit to Factory 6745 | -7/Factory | Entered another Factory area 6745 | -6/Factory | Evolved 2 slots: Power x1, Utility x1 6938 | -6/Factory | Fabricated Adv. Drone Bay? 7844 | -6/Factory | Discovered new exit (range 22) 7975 | -6/Factory | Identified exit to Factory 8284 | -6/Factory | Fabricated Adv. Drone Bay? 9209 | -6/Factory | Entered another Factory area 9209 | -5/Factory | Evolved 2 slots: Utility x2 9518 | -5/Factory | Build established: Hacker-Assassin 9523 | -5/Factory | Sucked down chute 9523 | -5/Factory | Entered Waste 9538 | -5/Waste | EMP discharged 9541 | -5/Waste | Spotted C-40 Crusher 9560 | -5/Waste | Spotted C-40 Crusher 9565 | -5/Waste | Spotted C-40 Crusher 9570 | -5/Waste | Spotted C-40 Crusher 9573 | -5/Waste | Spotted C-40 Crusher 9606 | -5/Waste | Crushed by Compactor (1 part destroyed, 1 dropped) 9612 | -5/Waste | Crushed by Compactor (1 part destroyed, 1 dropped) 9613 | -5/Waste | Crushed by Compactor (0 parts destroyed, 2 dropped) 9618 | -5/Waste | Crushed by Compactor (1 part destroyed) 9628 | -5/Waste | Spotted C-40 Crusher 9638 | -5/Waste | EMP discharged 9638 | -5/Waste | System corruption reached 10% 9649 | -5/Waste | Lost 4 parts (1n2u1w) 9683 | -5/Waste | Discovered new exit (range 12) 9693 | -5/Waste | Identified exit to Factory 9694 | -5/Waste | Entered Factory 10176 | -5/Factory | Lost 5 parts (2n3u) 10387 | -5/Factory | Discovered new exit (range 10) 10446 | -5/Factory | Identified exit to Upper Caves 10449 | -5/Factory | Entered Upper Caves 10725 | -5/Upper Caves | Build established: Scavenger-Assassin 10761 | -5/Upper Caves | Attracted the attention of an 0b10 checkpoint 11005 | -5/Upper Caves | Crushed by falling debris 11005 | -5/Upper Caves | System corruption reached 30% 11036 | -5/Upper Caves | Lost 4 parts (3u1w) 11102 | -5/Upper Caves | Discovered new exit (range 16) 11120 | -5/Upper Caves | Identified exit to Upper Caves 11187 | -5/Upper Caves | Entered another Upper Caves area 11187 | -5/Upper Caves | Discovered new exit (range 10) 11233 | -5/Upper Caves | Lost 3 parts (1p1n1w) 11331 | -5/Upper Caves | Identified exit to Factory 11333 | -5/Upper Caves | Entered Factory 11333 | -4/Factory | Evolved 2 slots: Propulsion x1, Utility x1 11615 | -4/Factory | Lost 11 parts (2p1n5u3w) 11618 | -4/Factory | Core integrity fell below 50% 11639 | -4/Factory | Core integrity fell below 20% 11689 | -4/Factory | Discovered new exit (range 5) 11690 | -4/Factory | Identified exit to Research 11717 | -4/Factory | System corruption reached 10% 11725 | -4/Factory | Entered Research 11725 | -3/Research | Evolved 2 slots: Propulsion x2 11876 | -3/Research | Lost 9 parts (5n2u2w) 11892 | -3/Research | Build established: Mutant 11964 | -3/Research | Found Prototype Launcher 11964 | -3/Research | Identified Tesla Bomb Launcher 12413 | -3/Research | Spotted B-86 Titan 12434 | -3/Research | Discovered new exit (range 3) 12435 | -3/Research | Identified exit to Armory 12659 | -3/Research | Core integrity fell below 50% 12685 | -3/Research | Core integrity fell below 20% 12699 | -3/Research | Destroyed by P-80 Master with Gamma Rifle Last Messages --------------- 12670_ Lrn. Terrain Scanner destroyed. 12670_ Acquired Corrupted Lgt. Antimatter Reactor. 12670_ Integrated Corrupted Lgt. Antimatter Reactor (+1). 12670_ Imp. Antigrav System destroyed. 12674_ Adv. Recalibrator destroyed. 12674_ Lgt. Antimatter Reactor destroyed. 12678_ Imp. Antigrav System severed. 12680_ Critical hit (Burn: +37). 12680_ Adv. Heat Sink destroyed. 12681_ Com. HERF Cannon severed. 12682_ P-80 Master resets C-35 Carver, system corruption cleaned. 12684_ Critical hit (Burn: +50). 12685_ Med. Storage Unit destroyed. 12687_ Targeting Computer severed. 12690_ Core Analyzer severed. 12694_ C-35 Carver destroyed. 12695_ System corrupted: Energy discharge (-10). 12698_ Acquired Imp. Surge Thruster. 12698_ Nova Cannon severed. 12699_ Imp. Surge Thruster severed. Map ----- +----------------------------------------------------+ | ???????????????????????????????#####"####????????? | | ?????????????????????########### #????????? | | ?????????????????????# # #????????? | | ?????????????????????# """ #????????? | | ?????????????????????# # """ #????????? | | ?????????????????????#] # """ #????????? | | ?????????????????????# [% # """ #???? ???? | | ?????????????????????# # """ #????????? | | ?????????????????????# # !#????????? | | ?????????????????????# ! * # #????????? | | ?????????######+#############/######+############# | | ???????? | | ???????? ] | | ??????? =g= | | ???????? ==[g =[ | | ?????????########## g######+#############+### | | ?????????# # #????? ????# =%= # | | ?????????# # #?????? ???# = # | | ??????????? """" + #???? ?? #??# |||# | | ??????????? """" # #???????? #??# |||# | | ????????????""""??# #????H????#?## || # | | ????????????""????# #????????????# # | | ??????????????????# #????????????# # | | ??????????????????# #??????????#?# # | | ??????????????????# ######################## | | ??????????????????# !c@= | | ??????????????????# ppcs | | ??????????????????# | | ??????????????????# | | ??????????????????################ ##### | | ???????????????????????????????????????# == | | ???????????????????????????????????????# = | | ????????????????????????????#??????????# = | | ???????????????????????????????????????# | | ???????????????????????????????????????# ! | | ???????????????????????????????????????# | | ???????????????????????????????????? ??# | | ??????????????????????????????"????"?? # | | ???????????????????????????????????????# | | ??????????????????????????#????????????# | | ?????????????????????????#???? ????????/ | | ?????????????????????????????????????? # | | ?????????????????????????????????????? # """ | | ?????????????????????????????????????? # """ | | ?????????????????????????????????????? # """ | | ???????????????????????????????? ??????# """ | | ???????????????????????????????????????# """ | | ???????????????????????????????????????# | | ???????????????????????????????#???????# | | ?????????????????????????????? ????????# | +----------------------------------------------------+ Best States ------------- Heat Dissipation 66 Energy Generation 34 Energy Capacity 1765 Matter Stores 300 Matter Capacity 450 Sight Range 16 Robot Scan Range 20 Terrain Scan Range 24 Terrain Scan Density 10 ECM Strength 2 Cloak Strength 2 Additional Mass Support 6 Armor Coverage 600 Resistance: KI 20 Evasion (%) 73 Targeting Accuracy 6 Melee Accuracy 6 Target Analysis 8 Core Analysis 6 Offensive Hacking 20 Defensive Hacking 12 Item Schematics ----------------- Adv. Drone Bay | -7/Factory | Hacked Arm. Wheel | -7/Factory | Scanalyzed Hacking Suite | -6/Factory | Scanalyzed Arm. Huge Wheel | -6/Factory | Scanalyzed Impulse Thruster Array | -3/Research | Scanalyzed Gamma Rifle | -3/Research | Scanalyzed Robot Schematics ------------------ None Fabricated ------------ Adv. Drone Bay | x1 | -7/Factory Adv. Drone Bay | x1 | -6/Factory Adv. Drone Bay | x1 | -6/Factory Repaired ---------- Arm. Wheel | 6% | -8/Materials Alien Tech Used ----------------- None Achievements -------------- Dangerous Findings Challenges ------------ None Game ------ Seed MissileConstructSword Manual? 0 Play Time 03:12:09 Cumulative 71.3 hours Start 2025.09.25 @ 09:55:52 End 2025.09.30 @ 09:01:56 Sessions 13 Manual Loads 0 Difficulty Rogue Special Mode None Game No. 75 Rogue 75 Adventurer 0 Explorer 0 Win Type - Total 0 Types 0/0/0/0/0/0/0/0/0/0 Lore% 20 Gallery% 35 Achievement% 29 Wizard Run 0 Options --------- Layout 1 ASCII 0 Keyboard 0 Movement Numpad Keybinds 0 Fullscreen 1 Font 32/SmallcapsGlow Map View 77x35 Zoom Use 0% Tactical HUD 1 Map Filters NONE Filters NONE Steam 1 RUN: 3aab3b78-a6c0-459e-aa26-33b21cdbb550